fUST/lending_fUST_20250705
["ID","MTS","AMOUNT","RATE_DAILY","PERIOD"]
[369644142,1751667044298,-1098.21044672,0.00021038,4]
[369644143,1751667044310,-3000.0,0.0002104,2]
[369644144,1751667044322,-3000.0,0.0002105,2]
[369644145,1751667044333,-3000.0,0.0002106,2]
[369644146,1751667044345,-3000.0,0.0002107,2]
[369644147,1751667044356,-3000.0,0.0002108,2]
[369644148,1751667044366,-3000.0,0.0002109,2]
[369644149,1751667044375,-151.0,0.00021095,2]
[369644150,1751667044385,-151.0,0.00021095,2]
[369644151,1751667044394,-478.41,0.00021095,2]
[369644152,1751667044404,-460.0,0.00021095,2]
[369644153,1751667044413,-471.8,0.00021095,2]
[369644154,1751667044423,-460.0,0.00021095,2]
[369644155,1751667044433,-569.05,0.00021095,2]
[369644156,1751667044442,-503.02,0.00021095,2]
[369644157,1751667044453,-1261.3,0.00021095,2]
[369644158,1751667044462,-667.1,0.00021095,2]
[369644159,1751667044472,-3000.0,0.000211,2]
[369644160,1751667044481,-3000.0,0.0002111,2]
[369644161,1751667044491,-3000.0,0.0002112,2]
[369644162,1751667044502,-3000.0,0.0002113,2]
[369644163,1751667044512,-151.0,0.0002113,2]
[369644164,1751667044522,-151.0,0.0002113,2]
[369644165,1751667044532,-225.494757,0.0002113,2]
[369644166,1751667044541,-151.0,0.0002113,2]
[369644167,1751667044551,-151.0,0.0002113,2]
[369644168,1751667044560,-151.0,0.0002113,2]
[369644169,1751667044570,-151.0,0.0002113,2]
[369644170,1751667044579,-151.0,0.0002113,2]
[369644171,1751667044589,-151.0,0.0002113,2]
[369644172,1751667044599,-3000.0,0.0002114,2]
[369644173,1751667044608,-151.0,0.0002114,2]
[369644174,1751667044618,-153.06237,0.0002114,2]
[369644175,1751667044628,-151.0,0.0002114,2]
[369644176,1751667044638,-151.0,0.0002115,2]
[369644177,1751667044654,-3000.0,0.0002115,2]
[369644178,1751667044664,-3000.0,0.0002116,2]
[369644179,1751667044674,-151.0,0.0002116,2]
[369644180,1751667044683,-3000.0,0.0002117,2]
[369644181,1751667044692,-3000.0,0.0002118,2]
[369644182,1751667044909,-151.0,0.0002118,2]
[369644183,1751667044923,-158.91875,0.0002118,2]
[369644184,1751667044945,-228.513247,0.0002118,2]
[369644185,1751667044956,-3000.0,0.0002119,2]
[369644186,1751667044967,-151.0,0.000212,4]
[369644187,1751667044977,-3000.0,0.000212,2]
[369644188,1751667044987,-151.0,0.000212,2]
[369644189,1751667044997,-151.0,0.000212,2]
[369644190,1751667045007,-168.382306,0.000212,2]
[369644191,1751667045017,-168.382306,0.000212,2]
[369644192,1751667045027,-3000.0,0.0002121,2]
[369644193,1751667045037,-3000.0,0.0002122,2]
[369644194,1751667045047,-239.0,0.00021221,2]
[369644195,1751667045057,-239.0,0.0002123,2]
[369644196,1751667045067,-3000.0,0.0002123,2]
[369644197,1751667045077,-3000.0,0.0002124,2]
[369644198,1751667045087,-3000.0,0.0002125,2]
[369644199,1751667045097,-3000.0,0.0002126,2]
[369644200,1751667045107,-3000.0,0.0002127,2]
[369644201,1751667045117,-3000.0,0.0002128,2]
[369644202,1751667045127,-3000.0,0.0002129,2]
[369644203,1751667045138,-151.0,0.0002129,2]
[369644204,1751667045148,-151.0,0.0002129,2]
[369644205,1751667045158,-3000.0,0.000213,2]
[369644206,1751667045168,-151.0,0.000213,2]
[369644207,1751667045178,-239.0,0.00021305,2]
[369644208,1751667045188,-3000.0,0.0002131,2]
[369644209,1751667045198,-1098.21044672,0.00021314,5]
[369644210,1751667045208,-3000.0,0.0002132,2]
[369644211,1751667045219,-3000.0,0.0002133,2]
[369644212,1751667045228,-3000.0,0.0002134,2]
[369644213,1751667045238,-3000.0,0.0002135,2]
[369644214,1751667045248,-3000.0,0.0002136,2]
[369644215,1751667045258,-478.41,0.00021369,2]
[369644216,1751667045268,-343.53,0.00021369,2]
[369644217,1751667045278,-471.8,0.00021369,2]
[369644218,1751667045288,-460.0,0.00021369,2]
[369644219,1751667045298,-569.05,0.00021369,2]
[369644220,1751667045308,-503.02,0.00021369,2]
[369644221,1751667045318,-1261.3,0.00021369,2]
[369644222,1751667045328,-667.1,0.00021369,2]
[369644223,1751667045338,-3000.0,0.0002137,2]
[369644224,1751667045348,-151.0,0.0002138,2]
[369644225,1751667045358,-3000.0,0.0002138,2]
[369644226,1751667045368,-3000.0,0.0002139,2]
[369644227,1751667045377,-3000.0,0.000214,2]
[369644228,1751667045387,-239.0,0.00021401,2]
[369644229,1751667045397,-3000.0,0.0002141,2]
[369644230,1751667045407,-3000.0,0.0002142,2]
[369644231,1751667045417,-5674.901587,0.0002143,2]
[369644232,1751667045427,-8790.58455014,0.00021442,2]
[369644233,1751667045436,-165.440118,0.00021467,2]
[369644234,1751667045446,-151.0,0.00021467,2]
[369644235,1751667045457,-151.0,0.00021467,2]
[369644236,1751667045467,-219.682817,0.00021467,2]
[369644237,1751667045476,-151.0,0.00021467,2]
[369644238,1751667045486,-151.0,0.00021467,2]
[369644239,1751667045496,-1602.91080679,0.00021467,2]
[369644240,1751667045505,-5000.0,0.00021467,2]
[369644241,1751667045515,-5000.0,0.00021467,2]
[369644242,1751667045525,-5000.0,0.00021467,2]
[369644243,1751667045535,-10111.40821971,0.000215,2]
[369644244,1751667045544,-151.0,0.000215,3]
[369644245,1751667045554,-151.0,0.000215,2]
[369644246,1751667045563,-5000.0,0.00021527,2]
[369644247,1751667045573,-5000.0,0.00021527,2]
[369644248,1751667045583,-1098.21044672,0.0002159,5]
[369644249,1751667045592,-169.33740932,0.00021592,2]
[369644250,1751667045602,-151.0,0.000216,2]
[369644251,1751667045613,-151.0,0.000216,3]
[369644252,1751667045623,-500.0,0.00021643,10]
[369644253,1751667045632,-500.0,0.00021643,10]
[369644254,1751667045642,-500.0,0.00021643,10]
[369644255,1751667045655,-500.0,0.00021643,10]
[369644256,1751667045664,-500.0,0.00021643,10]
[369644257,1751667045674,-500.0,0.00021643,10]
[369644258,1751667045684,-500.0,0.00021643,10]
[369644259,1751667045694,-500.0,0.00021643,10]
[369644260,1751667045705,-500.0,0.00021643,10]
[369644261,1751667045714,-151.0,0.00021643,2]
[369644262,1751667045724,-478.41,0.00021643,2]
[369644263,1751667045734,-471.8,0.00021643,2]
[369644264,1751667045744,-341.82,0.00021643,2]
[369644265,1751667045753,-569.05,0.00021643,2]
[369644266,1751667045763,-503.02,0.00021643,2]
[369644267,1751667045772,-1261.3,0.00021643,2]
[369644268,1751667045781,-667.1,0.00021643,2]
[369644269,1751667045790,-5000.0,0.00021644,2]
[369644270,1751667045799,-5000.0,0.00021644,2]
[369644271,1751667045809,-5000.0,0.00021644,2]
[369644272,1751667045818,-5000.0,0.00021644,2]
[369644273,1751667045828,-5000.0,0.00021644,2]
[369644274,1751667045837,-5000.0,0.00021644,2]
[369644275,1751667045846,-5000.0,0.00021644,2]
[369644276,1751667045856,-5000.0,0.00021644,2]
[369644277,1751667045865,-5000.0,0.00021644,2]
[369644278,1751667045875,-4849.42846466,0.00021644,2]
[369644279,1751667045884,-151.0,0.00021644,2]
[369644280,1751667045894,-151.0,0.00021644,2]
[369644281,1751667045904,-151.0,0.00021644,2]
[369644282,1751667045914,-198.346605,0.00021644,2]
[369644284,1751667045923,-168.382306,0.00021644,2]
[369644285,1751667045933,-168.382306,0.00021644,2]
[369644286,1751667045943,-151.0,0.00021644,2]
[369644287,1751667045953,-151.0,0.00021644,2]
[369644288,1751667045963,-151.0,0.00021644,2]
[369644289,1751667045972,-151.0,0.00021644,2]
[369644291,1751667045982,-151.0,0.00021644,2]
[369644292,1751667045991,-151.0,0.00021644,2]
[369644293,1751667046000,-151.0,0.00021644,2]
[369644294,1751667046010,-151.0,0.00021644,2]
[369644295,1751667046020,-151.0,0.00021644,2]
[369644296,1751667046029,-406.0,0.00021646,2]
[369644297,1751667046039,-1231.26,0.00021657,2]
[369644298,1751667046048,-8023.41,0.000217,2]
[369644299,1751667046058,-239.0,0.00021712,2]
[369644300,1751667046067,-1231.26,0.00021757,2]
[369644301,1751667046077,-500.0,0.00021779,10]
[369644302,1751667046086,-500.0,0.00021779,10]
[369644303,1751667046095,-500.0,0.00021779,10]
[369644304,1751667046104,-500.0,0.00021779,10]
[369644305,1751667046114,-500.0,0.00021779,10]
[369644306,1751667046123,-123984.37251656,0.0002178,2]
[369644307,1751667046132,-151.0,0.0002178,2]
[369644308,1751667046142,-151.0,0.0002178,2]
[369644309,1751667046151,-151.0,0.0002178,2]
[369644310,1751667046160,-151.0,0.0002178,2]
[369644311,1751667046170,-151.0,0.0002178,2]
[369644312,1751667046179,-151.0,0.0002178,2]
[369644313,1751667046189,-151.0,0.0002178,2]
[369644314,1751667046200,-151.0,0.0002178,2]
[369644315,1751667046211,-151.0,0.0002178,2]
[369644316,1751667046220,-223.0315306,0.00021792,2]
[369644317,1751667046229,-239.0,0.00021812,2]
[369644318,1751667046239,-239.0,0.00021831,2]
[369644319,1751667046248,-239.0,0.00021845,2]
[369644320,1751667046258,-239.0,0.00021848,2]
[369644321,1751667046267,-1231.26,0.00021857,2]
[369644322,1751667046277,-1098.21044672,0.00021866,6]
[369644323,1751667046286,-10002.99864626,0.000219,2]
[369644324,1751667046295,-2000.0,0.000219,2]
[369644325,1751667046305,-264.661992,0.000219,2]
[369644326,1751667046314,-2000.0,0.000219,2]
[369644327,1751667046323,-236.28442,0.000219,2]
[369644328,1751667046333,-151.0,0.000219,2]
[369644329,1751667046343,-151.0,0.000219,2]
[369644330,1751667046352,-151.0,0.000219,2]
[369644331,1751667046362,-151.0,0.000219,2]
[369644332,1751667046372,-151.0,0.000219,2]
[369644333,1751667046381,-500.0,0.00021916,10]
[369644334,1751667046391,-500.0,0.00021916,10]
[369644335,1751667046400,-500.0,0.00021916,10]
[369644336,1751667046410,-500.0,0.00021916,10]
[369644337,1751667046420,-500.0,0.00021916,10]
[369644338,1751667046429,-500.0,0.00021916,10]
[369644339,1751667046439,-500.0,0.00021917,10]
[369644340,1751667046450,-936.44,0.00021917,2]
[369644341,1751667046460,-936.44,0.00021917,2]
[369644342,1751667046470,-936.44,0.00021917,2]
[369644343,1751667046480,-936.44,0.00021917,2]
[369644344,1751667046489,-936.44,0.00021917,2]
[369644345,1751667046499,-936.44,0.00021917,2]
[369644346,1751667046508,-936.44,0.00021917,2]
[369644347,1751667046517,-936.44,0.00021917,2]
[369644348,1751667046527,-936.44,0.00021917,2]
[369644349,1751667046537,-936.44,0.00021917,2]
[369644350,1751667046546,-936.44,0.00021917,2]
[369644351,1751667046556,-936.44,0.00021917,2]
[369644352,1751667046565,-936.44,0.00021917,2]
[369644353,1751667046575,-936.44,0.00021917,2]
[369644354,1751667046584,-936.44,0.00021917,2]
[369644355,1751667046594,-936.44,0.00021917,2]
[369644356,1751667046604,-936.44,0.00021917,2]
[369644357,1751667046613,-936.44,0.00021917,2]
[369644358,1751667046623,-936.44,0.00021917,2]
[369644359,1751667046633,-936.44,0.00021917,2]
[369644360,1751667046643,-936.44,0.00021917,2]
[369644361,1751667046657,-151.0,0.00021917,2]
[369644362,1751667046666,-187.46436,0.00021917,2]
[369644363,1751667046676,-168.382306,0.00021917,2]
[369644364,1751667046685,-168.382306,0.00021917,2]
[369644365,1751667046694,-474.80013258,0.00021917,2]
[369644366,1751667046705,-478.41,0.00021917,2]
[369644367,1751667046714,-471.8,0.00021917,2]
[369644368,1751667046723,-569.05,0.00021917,2]
[369644369,1751667046733,-503.02,0.00021917,2]
[369644370,1751667046743,-460.0,0.00021917,2]
[369644371,1751667046752,-460.0,0.00021917,2]
[369644372,1751667046761,-460.0,0.00021917,2]
[369644373,1751667046771,-460.0,0.00021917,2]
[369644374,1751667046780,-460.0,0.00021917,2]
[369644375,1751667046794,-460.0,0.00021917,2]
[369644376,1751667046809,-460.0,0.00021917,2]
[369644377,1751667046819,-460.0,0.00021917,2]
[369644378,1751667046829,-460.0,0.00021917,2]
[369644379,1751667046839,-460.0,0.00021917,2]
[369644380,1751667046849,-297.37904179,0.00021917,2]
[369644381,1751667046858,-1261.3,0.00021917,2]
[369644382,1751667046867,-500.0,0.00021917,2]
[369644383,1751667046877,-500.0,0.00021917,2]
[369644384,1751667046886,-500.0,0.00021917,2]
[369644385,1751667046896,-667.1,0.00021917,2]
[369644386,1751667046905,-500.0,0.00021917,2]
[369644387,1751667046915,-500.0,0.00021917,2]
[369644388,1751667046924,-500.0,0.00021917,2]
[369644389,1751667046934,-500.0,0.00021917,2]
[369644390,1751667046943,-500.0,0.00021917,2]
[369644391,1751667046952,-500.0,0.00021917,2]
[369644392,1751667046962,-500.0,0.00021917,2]
[369644393,1751667046971,-500.0,0.00021917,2]
[369644394,1751667046981,-500.0,0.00021917,2]
[369644395,1751667046990,-412.27202292,0.00021917,2]
[369644396,1751667047000,-151.0,0.00021918,2]
[369644397,1751667047009,-151.0,0.00021918,2]
[369644398,1751667047018,-151.0,0.00021918,2]
[369644399,1751667047027,-151.0,0.00021918,2]
[369644400,1751667047037,-151.0,0.00021918,2]
[369644401,1751667047056,-411.540545,0.00021918,2]
[369644402,1751667047069,-411.540545,0.00021918,2]
[369644403,1751667047079,-411.540545,0.00021918,2]
[369644404,1751667047090,-411.540545,0.00021918,2]
[369644405,1751667047100,-411.540545,0.00021918,2]
[369644406,1751667047110,-411.540545,0.00021918,2]
[369644407,1751667047119,-404.75818205,0.00021918,7]
[369644408,1751667047129,-151.0,0.00021918,2]
[369644409,1751667047138,-151.0,0.00021918,2]
[369644410,1751667047148,-151.0,0.00021918,2]
[369644411,1751667047157,-151.0,0.00021918,2]
[369644412,1751667047167,-151.0,0.00021918,2]
[369644413,1751667047176,-151.0,0.00021918,2]
[369644414,1751667047185,-151.0,0.00021918,2]
[369644415,1751667047194,-151.0,0.00021918,2]
[369644416,1751667047204,-151.0,0.00021918,2]
[369644417,1751667047214,-151.0,0.00021918,2]
[369644418,1751667047223,-151.0,0.00021918,2]
[369644419,1751667047233,-151.0,0.00021918,2]
[369644420,1751667047242,-151.0,0.00021918,2]
[369644421,1751667047251,-151.0,0.00021918,2]
[369644422,1751667047261,-151.0,0.00021918,2]
[369644423,1751667047271,-151.0,0.00021918,2]
[369644424,1751667047280,-151.0,0.00021918,2]
[369644425,1751667047289,-151.0,0.00021918,2]
[369644426,1751667047299,-151.0,0.00021918,2]
[369644427,1751667047308,-151.0,0.00021918,2]
[369644428,1751667047318,-151.0,0.00021918,2]
[369644429,1751667047327,-151.0,0.00021918,2]
[369644430,1751667047336,-151.0,0.00021918,2]
[369644431,1751667047345,-151.0,0.00021918,2]
[369644432,1751667047355,-151.0,0.00021918,2]
[369644433,1751667047364,-151.0,0.00021918,2]
[369644434,1751667047373,-151.0,0.00021918,2]
[369644435,1751667047383,-151.0,0.00021918,2]
[369644436,1751667047393,-151.0,0.00021918,2]
[369644437,1751667047403,-151.0,0.00021918,2]
[369644438,1751667047412,-151.0,0.00021918,2]
[369644439,1751667047422,-151.0,0.00021918,2]
[369644440,1751667047432,-151.0,0.00021918,2]
[369644441,1751667047441,-151.0,0.00021918,2]
[369644442,1751667047452,-151.0,0.00021918,2]
[369644443,1751667047463,-151.0,0.00021918,2]
[369644444,1751667047472,-151.0,0.00021918,2]
[369644445,1751667047482,-151.0,0.00021918,2]
[369644446,1751667047491,-151.0,0.00021918,2]
[369644447,1751667047501,-151.0,0.00021918,2]
[369644448,1751667047510,-151.0,0.00021918,2]
[369644449,1751667047520,-151.0,0.00021918,2]
[369644450,1751667047529,-206.12918066,0.00021918,2]
[369644451,1751667047539,-151.0,0.00021918,2]
[369644452,1751667047548,-151.0,0.00021918,2]
[369644453,1751667047558,-151.0,0.00021918,2]
[369644454,1751667047568,-151.0,0.00021918,2]
[369644455,1751667047578,-151.0,0.00021918,2]
[369644456,1751667047588,-151.0,0.00021918,2]
[369644457,1751667047598,-151.0,0.00021918,2]
[369644458,1751667047607,-171.0,0.00021918,2]
[369644459,1751667047617,-171.0,0.00021918,2]
[369644460,1751667047626,-151.0,0.00021918,2]
[369644461,1751667047636,-176.74032422,0.00021918,2]
[369644462,1751667047647,-151.0,0.00021918,2]
[369644463,1751667047661,-151.0,0.00021918,2]
[369644464,1751667047670,-151.0,0.00021918,2]
[369644465,1751667047680,-151.0,0.00021918,2]
[369644466,1751667047689,-171.0,0.00021918,2]
[369644467,1751667047702,-171.0,0.00021918,2]
[369644468,1751667047712,-171.0,0.00021918,2]
[369644469,1751667047721,-151.0,0.00021918,2]
[369644470,1751667047732,-151.0,0.00021918,2]
[369644471,1751667047742,-151.0,0.00021918,2]
[369644472,1751667047752,-151.0,0.00021918,2]
[369644473,1751667047762,-151.0,0.00021918,2]
[369644474,1751667047772,-151.0,0.00021918,2]
[369644475,1751667047782,-151.0,0.00021918,2]
[369644476,1751667047791,-151.0,0.00021918,2]
[369644477,1751667047801,-151.0,0.00021918,2]
[369644478,1751667047810,-2051.5,0.0002195,2]
[369644479,1751667047820,-1231.26,0.00021957,7]
[369644480,1751667047830,-500.0,0.00021972,10]
[369644481,1751667047839,-500.0,0.00021972,10]
[369644482,1751667047849,-500.0,0.00021972,10]
[369644483,1751667047858,-500.0,0.00021972,10]
[369644484,1751667047868,-500.0,0.00021972,10]
[369644485,1751667047878,-500.53923014,0.00021973,2]
[369644486,1751667047889,-500.0,0.00021973,2]
[369644487,1751667047898,-500.0,0.00021973,2]
[369644488,1751667047908,-150.0,0.00021973,2]
[369644489,1751667047917,-500.61453291,0.00021973,2]
[369644490,1751667047926,-500.0,0.00021973,2]
[369644491,1751667047936,-500.0,0.00021973,2]
[369644492,1751667047945,-500.56870038,0.00021973,2]
[369644493,1751667047955,-500.32470307,0.00021973,2]
[369644494,1751667047964,-611.83906039,0.00021973,2]
[369644495,1751667047974,-160.14825087,0.00021973,2]
[369644496,1751667047984,-500.0,0.00021973,2]
[369644497,1751667047993,-499.51761771,0.00021973,2]
[369644498,1751667048002,-160.14970423,0.00021973,2]
[369644499,1751667048012,-500.54524606,0.00021973,2]
[369644500,1751667048021,-153.41971625,0.00021973,2]
[369644501,1751667048031,-500.0,0.00021973,2]
[369644502,1751667048040,-500.0,0.00021973,2]
[369644503,1751667048050,-500.0,0.00021973,2]
[369644504,1751667048060,-500.0,0.00021973,2]
[369644505,1751667048070,-500.0,0.00021973,2]
[369644506,1751667048080,-160.1500223,0.00021973,2]
[369644507,1751667048089,-159.62019996,0.00021973,2]
[369644508,1751667048099,-500.0,0.00021973,2]
[369644509,1751667048109,-160.15095219,0.00021973,2]
[369644510,1751667048119,-500.47689213,0.00021973,2]
[369644511,1751667048128,-500.0,0.00021973,2]
[369644512,1751667048138,-600.0,0.00021973,2]
[369644513,1751667048147,-248.6543117,0.00021973,2]
[369644514,1751667048157,-500.89856615,0.00021973,2]
[369644515,1751667048167,-417.84611993,0.00021973,2]
[369644516,1751667048176,-290.3423407,0.00021973,2]
[369644517,1751667048185,-160.15003593,0.00021973,2]
[369644518,1751667048195,-160.15505578,0.00021973,2]
[369644519,1751667048342,-500.0,0.00021973,2]
[369644520,1751667048356,-500.40410437,0.00021973,2]
[369644521,1751667048366,-500.0,0.00021973,2]
[369644522,1751667048376,-500.0,0.00021973,2]
[369644523,1751667048386,-500.0,0.00021973,2]
[369644524,1751667048396,-500.0,0.00021973,2]
[369644525,1751667048405,-537.5530194,0.00021973,2]
[369644526,1751667048415,-536.99893452,0.00021973,2]
[369644527,1751667048425,-500.0,0.00021973,2]
[369644528,1751667048434,-517.98876571,0.00021973,2]
[369644529,1751667048444,-500.0,0.00021973,2]
[369644530,1751667048454,-500.0,0.00021973,2]
[369644531,1751667048464,-500.0,0.00021973,2]
[369644532,1751667048474,-500.0,0.00021973,2]
[369644533,1751667048483,-500.0,0.00021973,2]
[369644534,1751667048493,-500.0,0.00021973,2]
[369644535,1751667048502,-151.0,0.00021973,7]
[369644536,1751667048512,-151.0,0.00021973,7]
[369644537,1751667048521,-500.0,0.00021999,10]
[369644538,1751667048531,-500.0,0.00021999,10]
[369644539,1751667048541,-500.0,0.00021999,10]
[369644540,1751667048551,-500.0,0.00021999,10]
[369644541,1751667048561,-500.0,0.00021999,10]
[369644542,1751667048571,-500.0,0.00021999,10]
[369644543,1751667048581,-500.0,0.00021999,10]
[369644544,1751667048591,-500.0,0.00021999,10]
[369644545,1751667048601,-500.0,0.00021999,10]
[369644546,1751667048611,-500.0,0.00021999,10]
[369644547,1751667048620,-1162.23556996,0.00022,2]
[369644548,1751667048630,-549.47402158,0.00022,2]
[369644549,1751667048640,-160.0,0.00022,4]
[369644550,1751667048653,-37880.31923811,0.00022,2]
[369644551,1751667048662,-352.03927373,0.00022,2]
[369644552,1751667048672,-10797.62247831,0.00022,2]
[369644553,1751667048682,-3000.0,0.00022,3]
[369644554,1751667048692,-48350.89520517,0.00022,14]
[369644555,1751667048702,-14115.72561352,0.00022,2]
[369644556,1751667048711,-11171.56930416,0.00022,2]
[369644557,1751667048721,-166.33337476,0.00022,10]
[369644558,1751667048730,-122812.31,0.00022,7]
[369644559,1751667048741,-11551.21,0.00022,7]
[369644560,1751667048750,-213.97741257,0.00022,3]
[369644561,1751667048760,-213.97741257,0.00022,10]
[369644562,1751667048770,-157545.23,0.00022,2]
[369644563,1751667048780,-162.637762,0.00022,7]
[369644564,1751667048790,-162.637762,0.00022,7]
[369644565,1751667048799,-162.637762,0.00022,7]
[369644566,1751667048809,-162.637762,0.00022,7]
[369644567,1751667048819,-151.0,0.00022,7]
[369644568,1751667048828,-151.0,0.00022,7]
[369644569,1751667048838,-151.0,0.00022,7]
[369644570,1751667048847,-245.296928,0.00022,7]
[369644571,1751667048858,-157.534463,0.00022,7]
[369644572,1751667048869,-151.0,0.00022,7]
[369644573,1751667048878,-151.0,0.00022,7]
[369644574,1751667048887,-212.985967,0.00022,7]
[369644575,1751667048897,-212.985967,0.00022,7]
[369644576,1751667048907,-212.985967,0.00022,7]
[369644577,1751667048916,-212.985967,0.00022,7]
[369644578,1751667048925,-151.320744,0.00022,7]
[369644579,1751667048934,-151.0,0.00022,7]
[369644580,1751667048944,-151.0,0.00022,7]
[369644581,1751667048953,-151.0,0.00022,7]
[369644582,1751667048963,-151.0,0.00022,7]
[369644583,1751667048972,-151.0,0.00022,7]
[369644584,1751667048981,-151.0,0.00022,7]
[369644585,1751667048991,-151.0,0.00022,7]
[369644586,1751667049000,-151.0,0.00022,7]
[369644587,1751667049010,-151.0,0.00022,7]
[369644588,1751667049019,-151.0,0.00022,7]
[369644589,1751667049028,-151.0,0.00022,7]
[369644590,1751667049038,-151.0,0.00022,7]
[369644591,1751667049063,-151.0,0.00022,7]
[369644592,1751667049073,-151.0,0.00022,7]
[369644593,1751667049083,-151.0,0.00022,7]
[369644594,1751667049092,-151.0,0.00022,7]
[369644595,1751667049102,-168.382306,0.00022,7]
[369644596,1751667049111,-168.382306,0.00022,7]
[369644597,1751667049121,-168.382306,0.00022,7]
[369644598,1751667049130,-168.382306,0.00022,7]
[369644599,1751667049139,-151.0,0.00022,7]
[369644600,1751667049149,-151.0,0.00022,7]
[369644601,1751667049158,-151.0,0.00022,7]
[369644602,1751667049168,-151.0,0.00022,7]
[369644603,1751667049177,-151.0,0.00022,7]
[369644604,1751667049187,-151.0,0.00022,7]
[369644605,1751667049196,-151.0,0.00022,7]
[369644606,1751667049206,-151.0,0.00022,7]
[369644607,1751667049215,-847.91215827,0.00022,7]
[369644608,1751667049225,-847.91215827,0.00022,10]
[369644609,1751667049235,-151.0,0.00022,7]
[369644610,1751667049244,-151.0,0.00022,7]
[369644611,1751667049254,-151.0,0.00022,7]
[369644612,1751667049264,-151.0,0.00022,7]
[369644613,1751667049274,-151.0,0.00022,7]
[369644614,1751667049283,-156.5352,0.00022,7]
[369644615,1751667049293,-524.86301716,0.00022,10]
[369644616,1751667049302,-411.540545,0.00022,7]
[369644617,1751667049312,-411.540545,0.00022,7]
[369644618,1751667049321,-411.540545,0.00022,7]
[369644619,1751667049330,-411.540545,0.00022,7]
[369644620,1751667049339,-4000.0,0.00022,4]
[369644621,1751667049348,-1231.26,0.00022057,2]
[369644622,1751667049358,-5000.0,0.00022118,3]
[369644623,1751667049368,-1098.21044672,0.00022141,6]
[369644624,1751667049378,-1231.26,0.00022157,4]
[369644625,1751667049387,-936.44,0.00022191,2]
[369644626,1751667049396,-478.41,0.00022191,2]
[369644627,1751667049406,-471.8,0.00022191,2]
[369644628,1751667049415,-569.05,0.00022191,2]
[369644629,1751667049426,-503.02,0.00022191,2]
[369644630,1751667049436,-1261.3,0.00022191,2]
[369644631,1751667049446,-667.1,0.00022191,2]
[369644632,1751667049456,-1231.26,0.00022257,5]
[369644633,1751667049465,-1231.26,0.00022357,4]
[369644634,1751667049474,-11000.0,0.0002239,2]
[369644635,1751667049484,-6854.61433338,0.0002239,2]
[369644636,1751667049493,-152.42,0.000224,31]
[369644637,1751667049503,-152.42,0.000224,31]
[369644638,1751667049512,-152.42,0.000224,31]
[369644639,1751667049522,-152.42,0.000224,31]
[369644640,1751667049531,-152.42,0.000224,31]
[369644641,1751667049541,-152.42,0.000224,31]
[369644642,1751667049551,-1098.21044672,0.00022417,7]
[369644643,1751667049561,-1231.26,0.00022457,2]